[Event "*** Titled Tuesday Blitz"]
[Site "Chess.com"]
[Date "2020.04.07"]
[Round "4"]
[White "FMAntonio"]
[Black "LuckyTiger"]
[Result "1-0"]
[WhiteElo "2557"]
[BlackElo "2715"]
[TimeControl "180+1"]
[EndTime "13:42:20 PDT"]
[Termination "FMAntonio won by checkmate"]

1. d4 {[%clk 0:02:54.3]} 1... Nf6 {[%clk 0:02:59.9]} 2. c4 {[%clk 0:02:53.8]}
2... c5 {[%clk 0:03:00.2]} 3. d5 {[%clk 0:02:53.8]} 3... b5 {[%clk 0:03:00.5]}
4. cxb5 {[%clk 0:02:53.8]} 4... a6 {[%clk 0:03:01.1]} 5. bxa6 {[%clk 0:02:53.8]}
5... g6 {[%clk 0:03:01.7]} 6. Nc3 {[%clk 0:02:53.6]} 6... Bxa6 {[%clk
0:03:02.3]} 7. e4 {[%clk 0:02:52.8]} 7... Qa5 {[%clk 0:03:02.9]} 8. Bd2 {[%clk
0:02:51.1]} 8... Bxf1 {[%clk 0:03:02.4]} 9. Kxf1 {[%clk 0:02:51.2]} 9... d6
{[%clk 0:03:03.3]} 10. Nf3 {[%clk 0:02:50.5]} 10... Bg7 {[%clk 0:03:03.9]} 11.
g3 {[%clk 0:02:50.7]} 11... O-O {[%clk 0:03:04.6]} 12. Kg2 {[%clk 0:02:50.8]}
12... Na6 {[%clk 0:03:05]} 13. a4 {[%clk 0:02:37.9]} 13... Qb6 {[%clk
0:03:04.6]} 14. Re1 {[%clk 0:02:30.6]} 14... Nd7 {[%clk 0:03:00.5]} 15. Rb1
{[%clk 0:02:00.4]} 15... Nc7 {[%clk 0:03:00]} 16. b3 {[%clk 0:01:53.8]} 16...
Qa6 {[%clk 0:02:57.3]} 17. Qc2 {[%clk 0:01:52.5]} 17... Rab8 {[%clk 0:02:57.4]}
18. Bg5 {[%clk 0:01:48.9]} 18... Rfe8 {[%clk 0:02:53]} 19. Nd2 {[%clk
0:01:46.3]} 19... Ne5 {[%clk 0:02:52.2]} 20. Red1 {[%clk 0:01:32.8]} 20... Qd3
{[%clk 0:02:40.7]} 21. Qxd3 {[%clk 0:01:26.8]} 21... Nxd3 {[%clk 0:02:41.6]} 22.
Na2 {[%clk 0:01:27.3]} 22... Nb2 {[%clk 0:02:30.2]} 23. Rdc1 {[%clk 0:01:23.7]}
23... f5 {[%clk 0:02:29.1]} 24. exf5 {[%clk 0:01:18.1]} 24... gxf5 {[%clk
0:02:22.4]} 25. Nc4 {[%clk 0:01:17.2]} 25... Nd3 {[%clk 0:02:15.1]} 26. Rd1
{[%clk 0:01:14.2]} 26... Ne5 {[%clk 0:02:13.6]} 27. Bf4 {[%clk 0:01:02.1]} 27...
Ng6 {[%clk 0:02:09.3]} 28. Be3 {[%clk 0:01:01]} 28... Ne5 {[%clk 0:02:08.7]} 29.
Nxe5 {[%clk 0:01:00]} 29... Bxe5 {[%clk 0:02:09.6]} 30. b4 {[%clk 0:00:58.8]}
30... cxb4 {[%clk 0:02:04.2]} 31. Nxb4 {[%clk 0:00:55.5]} 31... Bc3 {[%clk
0:02:00.4]} 32. Nc6 {[%clk 0:00:54.9]} 32... Rxb1 {[%clk 0:01:59.7]} 33. Rxb1
{[%clk 0:00:54.5]} 33... Nxd5 {[%clk 0:02:00.2]} 34. Rb7 {[%clk 0:00:50.4]}
34... Kf7 {[%clk 0:01:58.2]} 35. a5 {[%clk 0:00:49.5]} 35... Rc8 {[%clk
0:01:58.1]} 36. Nxe7 {[%clk 0:00:36.9]} 36... Nxe7 {[%clk 0:01:57.5]} 37. a6
{[%clk 0:00:36.6]} 37... Ke6 {[%clk 0:01:42.3]} 38. a7 {[%clk 0:00:27.4]} 38...
Nc6 {[%clk 0:01:42.6]} 39. Rc7 {[%clk 0:00:22.1]} 39... Nxa7 {[%clk 0:01:39.7]}
40. Rxa7 {[%clk 0:00:21.8]} 40... d5 {[%clk 0:01:37.9]} 41. Ra6+ {[%clk
0:00:15.9]} 41... Ke5 {[%clk 0:01:34.2]} 42. Kf3 {[%clk 0:00:06.6]} 42... d4
{[%clk 0:01:34.2]} 43. Bf4+ {[%clk 0:00:06.5]} 43... Kd5 {[%clk 0:01:34.7]} 44.
Rf6 {[%clk 0:00:06.1]} 44... d3 {[%clk 0:01:32.5]} 45. Rxf5+ {[%clk 0:00:06.5]}
45... Kc4 {[%clk 0:01:32.9]} 46. Rf7 {[%clk 0:00:05]} 46... h5 {[%clk
0:01:28.6]} 47. Rd7 {[%clk 0:00:04.2]} 47... Rf8 {[%clk 0:01:26.1]} 48. Ke4
{[%clk 0:00:02.8]} 48... Re8+ {[%clk 0:01:25]} 49. Kf3 {[%clk 0:00:03.1]} 49...
Bd4 {[%clk 0:01:21.3]} 50. Rc7+ {[%clk 0:00:02.5]} 50... Kb3 {[%clk 0:01:21.6]}
51. Rh7 {[%clk 0:00:02.2]} 51... Kc2 {[%clk 0:01:19.3]} 52. Rxh5 {[%clk
0:00:02.1]} 52... Re2 {[%clk 0:01:16.1]} 53. Rd5 {[%clk 0:00:02.2]} 53... Rxf2+
{[%clk 0:01:14.7]} 54. Ke4 {[%clk 0:00:02.4]} 54... Ba7 {[%clk 0:01:00.6]} 55.
Rxd3 {[%clk 0:00:02.5]} 55... Re2+ {[%clk 0:01:00.5]} 56. Be3 {[%clk 0:00:02.8]}
56... Bb6 {[%clk 0:00:56.3]} 57. h4 {[%clk 0:00:02.5]} 57... Bc5 {[%clk
0:00:50.7]} 58. g4 {[%clk 0:00:02.7]} 58... Bb6 {[%clk 0:00:48.2]} 59. h5 {[%clk
0:00:03]} 59... Bc5 {[%clk 0:00:47.6]} 60. h6 {[%clk 0:00:03]} 60... Bb6 {[%clk
0:00:43.7]} 61. g5 {[%clk 0:00:03.3]} 61... Rg2 {[%clk 0:00:39.7]} 62. Bxb6
{[%clk 0:00:02.3]} 62... Rxg5 {[%clk 0:00:39.8]} 63. Be3 {[%clk 0:00:02.4]}
63... Rg4+ {[%clk 0:00:39]} 64. Bf4 {[%clk 0:00:02.4]} 64... Rh4 {[%clk
0:00:36.6]} 65. Rd6 {[%clk 0:00:02.6]} 65... Kc3 {[%clk 0:00:36.8]} 66. Rc6+
{[%clk 0:00:03]} 66... Kb4 {[%clk 0:00:37]} 67. Kf5 {[%clk 0:00:03.2]} 67... Kb5
{[%clk 0:00:37]} 68. Rc1 {[%clk 0:00:02.5]} 68... Rh5+ {[%clk 0:00:37.9]} 69.
Kg6 {[%clk 0:00:02.5]} 69... Rh4 {[%clk 0:00:38.3]} 70. Bg5 {[%clk 0:00:02.7]}
70... Rd4 {[%clk 0:00:37.8]} 71. h7 {[%clk 0:00:02.8]} 71... Rd6+ {[%clk
0:00:38.7]} 72. Bf6 {[%clk 0:00:03.1]} 72... Rd7 {[%clk 0:00:39.2]} 73. Rb1+
{[%clk 0:00:03.4]} 73... Kc6 {[%clk 0:00:39.3]} 74. h8=Q {[%clk 0:00:03.5]}
74... Rd6 {[%clk 0:00:39.6]} 75. Qc8+ {[%clk 0:00:03.7]} 75... Kd5 {[%clk
0:00:39.2]} 76. Rd1+ {[%clk 0:00:04]} 76... Ke4 {[%clk 0:00:39.3]} 77. Rxd6
{[%clk 0:00:03.7]} 77... Kf3 {[%clk 0:00:39.8]} 78. Qc4 {[%clk 0:00:03.8]} 78...
Kg2 {[%clk 0:00:39.8]} 79. Rd3 {[%clk 0:00:03.9]} 79... Kh1 {[%clk 0:00:39.8]}
80. Qc2 {[%clk 0:00:03.7]} 80... Kg1 {[%clk 0:00:40.7]} 81. Rd1# {[%clk
0:00:03.9]} 1-0

[Event "*** Titled Tuesday Blitz"]
[Site "Chess.com"]
[Date "2020.04.07"]
[Round "4"]
[White "nomessi"]
[Black "Malev212"]
[Result "1-0"]
[WhiteElo "2339"]
[BlackElo "2589"]
[TimeControl "180+1"]
[EndTime "13:42:21 PDT"]
[Termination "nomessi won on time"]

1. e4 {[%clk 0:03:00.8]} 1... e5 {[%clk 0:02:56.9]} 2. Nf3 {[%clk 0:03:00.4]}
2... Nc6 {[%clk 0:02:55.9]} 3. Bb5 {[%clk 0:03:00.3]} 3... Bc5 {[%clk 0:02:53]}
4. O-O {[%clk 0:02:59.6]} 4... d6 {[%clk 0:02:52.4]} 5. c3 {[%clk 0:02:59.2]}
5... Bd7 {[%clk 0:02:48.1]} 6. d4 {[%clk 0:02:57.4]} 6... Bb6 {[%clk 0:02:47.9]}
7. h3 {[%clk 0:02:56.4]} 7... Nge7 {[%clk 0:02:46]} 8. Re1 {[%clk 0:02:54.8]}
8... O-O {[%clk 0:02:45.1]} 9. Bc4 {[%clk 0:02:52]} 9... h6 {[%clk 0:02:36.3]}
10. Be3 {[%clk 0:02:51.2]} 10... Ng6 {[%clk 0:02:34.5]} 11. Nbd2 {[%clk
0:02:49.4]} 11... Kh8 {[%clk 0:01:54.7]} 12. a4 {[%clk 0:02:45]} 12... a6 {[%clk
0:01:43.3]} 13. Bd3 {[%clk 0:02:34]} 13... exd4 {[%clk 0:01:25.1]} 14. cxd4
{[%clk 0:02:33.1]} 14... Nb4 {[%clk 0:01:23.6]} 15. Bb1 {[%clk 0:02:31.7]} 15...
d5 {[%clk 0:01:21.6]} 16. e5 {[%clk 0:02:29.8]} 16... a5 {[%clk 0:01:16.3]} 17.
Nf1 {[%clk 0:02:26]} 17... f5 {[%clk 0:01:15.1]} 18. exf6 {[%clk 0:02:10.8]}
18... Qxf6 {[%clk 0:01:09.2]} 19. Ne5 {[%clk 0:02:09.8]} 19... Bf5 {[%clk
0:01:02.5]} 20. Bxf5 {[%clk 0:02:04.8]} 20... Qxf5 {[%clk 0:01:01.7]} 21. Ng3
{[%clk 0:02:04.3]} 21... Qe6 {[%clk 0:00:57.2]} 22. Qb3 {[%clk 0:01:46]} 22...
Nxe5 {[%clk 0:00:53.6]} 23. dxe5 {[%clk 0:01:45]} 23... c5 {[%clk 0:00:52.5]}
24. f4 {[%clk 0:01:36.6]} 24... c4 {[%clk 0:00:51.7]} 25. Qc3 {[%clk 0:01:30.7]}
25... Bxe3+ {[%clk 0:00:50.2]} 26. Qxe3 {[%clk 0:01:30]} 26... Nc2 {[%clk
0:00:48.6]} 27. Qf2 {[%clk 0:01:20.4]} 27... Nxa1 {[%clk 0:00:45.3]} 28. Rxa1
{[%clk 0:01:19.3]} 28... Rad8 {[%clk 0:00:38.5]} 29. Qd4 {[%clk 0:01:18.2]}
29... Qg6 {[%clk 0:00:28.8]} 30. Kh2 {[%clk 0:01:12.4]} 30... Qd3 {[%clk
0:00:28.2]} 31. Rd1 {[%clk 0:01:06.8]} 31... Qxd4 {[%clk 0:00:19.6]} 32. Rxd4
{[%clk 0:01:06.4]} 32... g6 {[%clk 0:00:20.5]} 33. Ne2 {[%clk 0:01:03.8]} 33...
h5 {[%clk 0:00:18.1]} 34. g3 {[%clk 0:01:00.9]} 34... Kg7 {[%clk 0:00:17]} 35.
Nc3 {[%clk 0:00:58.7]} 35... Rfe8 {[%clk 0:00:15.5]} 36. g4 {[%clk 0:00:54.1]}
36... hxg4 {[%clk 0:00:14.3]} 37. hxg4 {[%clk 0:00:53.9]} 37... g5 {[%clk
0:00:14.9]} 38. Kg3 {[%clk 0:00:53.6]} 38... gxf4+ {[%clk 0:00:14.4]} 39. Kxf4
{[%clk 0:00:53.7]} 39... Rf8+ {[%clk 0:00:13.7]} 40. Kg5 {[%clk 0:00:49.6]}
40... Rfe8 {[%clk 0:00:11.7]} 41. Kf4 {[%clk 0:00:44.1]} 41... Rd7 {[%clk
0:00:11.8]} 42. Rxd5 {[%clk 0:00:37.4]} 42... Rxd5 {[%clk 0:00:10.8]} 43. Nxd5
{[%clk 0:00:37.2]} 43... Rf8+ {[%clk 0:00:09.9]} 44. Nf6 {[%clk 0:00:34.4]}
44... Rc8 {[%clk 0:00:09.4]} 45. Ne4 {[%clk 0:00:31.6]} 45... Rd8 {[%clk
0:00:05.4]} 46. e6 {[%clk 0:00:29.2]} 46... Rd1 {[%clk 0:00:04]} 47. Ke5 {[%clk
0:00:26.5]} 47... Kf8 {[%clk 0:00:03.9]} 48. Nd6 {[%clk 0:00:20.2]} 48... Ke7
{[%clk 0:00:03.4]} 49. Nf5+ {[%clk 0:00:19.7]} 49... Ke8 {[%clk 0:00:03.3]} 50.
g5 {[%clk 0:00:18.9]} 50... Rg1 {[%clk 0:00:01]} 51. Kf6 {[%clk 0:00:17.8]}
51... Rg2 {[%clk 0:00:01.6]} 52. g6 {[%clk 0:00:15.3]} 1-0

[Event "*** Titled Tuesday Blitz"]
[Site "Chess.com"]
[Date "2020.04.07"]
[Round "4"]
[White "VinzentSpitzl"]
[Black "JozefKneht"]
[Result "1/2-1/2"]
[WhiteElo "2363"]
[BlackElo "2580"]
[TimeControl "180+1"]
[EndTime "13:42:21 PDT"]
[Termination "Game drawn - insufficient material"]

1. e4 {[%clk 0:03:00.9]} 1... e5 {[%clk 0:02:59.4]} 2. Nf3 {[%clk 0:03:00.8]}
2... Nc6 {[%clk 0:02:59.2]} 3. Bb5 {[%clk 0:03:00.3]} 3... a6 {[%clk 0:02:59.2]}
4. Ba4 {[%clk 0:03:00.1]} 4... Nf6 {[%clk 0:02:59.2]} 5. O-O {[%clk 0:03:00.3]}
5... Nxe4 {[%clk 0:02:57.8]} 6. d4 {[%clk 0:02:59.4]} 6... b5 {[%clk 0:02:57.7]}
7. Bb3 {[%clk 0:02:59]} 7... d5 {[%clk 0:02:58.2]} 8. dxe5 {[%clk 0:02:58.1]}
8... Be6 {[%clk 0:02:57.4]} 9. Nbd2 {[%clk 0:02:50.4]} 9... Nc5 {[%clk
0:02:56.3]} 10. c3 {[%clk 0:02:50.3]} 10... Be7 {[%clk 0:02:55.9]} 11. Bc2
{[%clk 0:02:47.7]} 11... Bg4 {[%clk 0:02:55]} 12. h3 {[%clk 0:02:27.3]} 12...
Bh5 {[%clk 0:02:54.1]} 13. Qe2 {[%clk 0:02:11]} 13... O-O {[%clk 0:02:46.3]} 14.
g4 {[%clk 0:02:03.3]} 14... Bg6 {[%clk 0:02:44.7]} 15. Nb3 {[%clk 0:02:03.4]}
15... Ne6 {[%clk 0:02:28.8]} 16. Nbd4 {[%clk 0:01:57]} 16... Ncxd4 {[%clk
0:02:23.4]} 17. Nxd4 {[%clk 0:01:56.3]} 17... c5 {[%clk 0:02:07.6]} 18. Nc6
{[%clk 0:01:53]} 18... Qd7 {[%clk 0:02:07.5]} 19. Nxe7+ {[%clk 0:01:52.9]} 19...
Qxe7 {[%clk 0:02:08]} 20. f4 {[%clk 0:01:51.1]} 20... Bxc2 {[%clk 0:02:06.6]}
21. Qxc2 {[%clk 0:01:51.1]} 21... Qh4 {[%clk 0:02:01.5]} 22. Kg2 {[%clk
0:01:34.3]} 22... d4 {[%clk 0:01:23.3]} 23. f5 {[%clk 0:01:20.4]} 23... Ng5
{[%clk 0:01:21.3]} 24. Bxg5 {[%clk 0:01:17.5]} 24... Qxg5 {[%clk 0:01:20.7]} 25.
cxd4 {[%clk 0:01:17.5]} 25... cxd4 {[%clk 0:01:20]} 26. Qd3 {[%clk 0:01:10.4]}
26... Rad8 {[%clk 0:01:11.2]} 27. Rad1 {[%clk 0:01:03.5]} 27... h5 {[%clk
0:01:10.1]} 28. Qd2 {[%clk 0:00:51.6]} 28... Qh4 {[%clk 0:00:48.8]} 29. Qf4
{[%clk 0:00:41.1]} 29... d3 {[%clk 0:00:44.1]} 30. g5 {[%clk 0:00:40.6]} 30...
Qxf4 {[%clk 0:00:42.6]} 31. Rxf4 {[%clk 0:00:41.5]} 31... Rfe8 {[%clk 0:00:43]}
32. Re4 {[%clk 0:00:24.4]} 32... Rd5 {[%clk 0:00:41.7]} 33. e6 {[%clk
0:00:19.6]} 33... Rxf5 {[%clk 0:00:37.8]} 34. exf7+ {[%clk 0:00:15]} 34... Kxf7
{[%clk 0:00:37.9]} 35. Rxe8 {[%clk 0:00:15.3]} 35... Kxe8 {[%clk 0:00:38.8]} 36.
Rxd3 {[%clk 0:00:15.9]} 36... Rxg5+ {[%clk 0:00:38.8]} 37. Kf3 {[%clk
0:00:16.4]} 37... Rf5+ {[%clk 0:00:23.3]} 38. Kg3 {[%clk 0:00:14.3]} 38... Kf7
{[%clk 0:00:21.5]} 39. Rd6 {[%clk 0:00:14]} 39... Rf6 {[%clk 0:00:21]} 40. Rd7+
{[%clk 0:00:14.6]} 40... Kg6 {[%clk 0:00:20.4]} 41. Rd5 {[%clk 0:00:15.1]} 41...
Kh6 {[%clk 0:00:19.9]} 42. Rc5 {[%clk 0:00:15.1]} 42... g5 {[%clk 0:00:19.5]}
43. Rd5 {[%clk 0:00:15.6]} 43... Kg6 {[%clk 0:00:19.6]} 44. Rc5 {[%clk
0:00:15.8]} 44... Rd6 {[%clk 0:00:19.7]} 45. Rc3 {[%clk 0:00:14.9]} 45... Kf5
{[%clk 0:00:17]} 46. Rc5+ {[%clk 0:00:14.9]} 46... Kf6 {[%clk 0:00:17.7]} 47.
Rc3 {[%clk 0:00:14.8]} 47... Ke5 {[%clk 0:00:17.9]} 48. Re3+ {[%clk 0:00:14.6]}
48... Kf5 {[%clk 0:00:17.4]} 49. Rc3 {[%clk 0:00:14.1]} 49... Ke4 {[%clk
0:00:17.1]} 50. Rc5 {[%clk 0:00:12.9]} 50... Rd5 {[%clk 0:00:17.4]} 51. Rc6
{[%clk 0:00:12.6]} 51... Rd3+ {[%clk 0:00:17.6]} 52. Kg2 {[%clk 0:00:10.8]}
52... Rd2+ {[%clk 0:00:18]} 53. Kg3 {[%clk 0:00:11.3]} 53... Rxb2 {[%clk
0:00:17.8]} 54. Rxa6 {[%clk 0:00:11]} 54... h4+ {[%clk 0:00:17.5]} 55. Kg4
{[%clk 0:00:10.9]} 55... Rg2+ {[%clk 0:00:17.8]} 56. Kh5 {[%clk 0:00:08.2]}
56... Rg3 {[%clk 0:00:18.1]} 57. a4 {[%clk 0:00:07.1]} 57... b4 {[%clk
0:00:17.4]} 58. Rb6 {[%clk 0:00:06.5]} 58... b3 {[%clk 0:00:17.4]} 59. a5 {[%clk
0:00:06.7]} 59... Kd5 {[%clk 0:00:16.8]} 60. a6 {[%clk 0:00:06.8]} 60... b2
{[%clk 0:00:11.2]} 61. Rxb2 {[%clk 0:00:05.7]} 61... Ra3 {[%clk 0:00:11.7]} 62.
Rb6 {[%clk 0:00:06.1]} 62... Rxh3 {[%clk 0:00:10]} 63. Kxg5 {[%clk 0:00:06.2]}
63... Ra3 {[%clk 0:00:10.6]} 64. Kxh4 {[%clk 0:00:06.1]} 64... Kc5 {[%clk
0:00:11.3]} 65. Rg6 {[%clk 0:00:06.3]} 65... Kb5 {[%clk 0:00:11.7]} 66. Kg5
{[%clk 0:00:06.6]} 66... Rxa6 {[%clk 0:00:11.6]} 67. Rxa6 {[%clk 0:00:06.5]}
67... Kxa6 {[%clk 0:00:12.5]} 1/2-1/2

[Event "*** Titled Tuesday Blitz"]
[Site "Chess.com"]
[Date "2020.04.07"]
[Round "4"]
[White "GadimbayliA"]
[Black "swisspower96"]
[Result "1/2-1/2"]
[WhiteElo "2918"]
[BlackElo "2680"]
[TimeControl "180+1"]
[EndTime "13:42:23 PDT"]
[Termination "Game drawn - insufficient material"]

1. e4 {[%clk 0:03:00.9]} 1... c5 {[%clk 0:02:56.6]} 2. Nf3 {[%clk 0:03:01.1]}
2... Nc6 {[%clk 0:02:56.5]} 3. Bb5 {[%clk 0:03:00.8]} 3... g6 {[%clk 0:02:55.9]}
4. Bxc6 {[%clk 0:03:01.1]} 4... dxc6 {[%clk 0:02:54.7]} 5. d3 {[%clk 0:03:01.3]}
5... Bg7 {[%clk 0:02:51.2]} 6. h3 {[%clk 0:03:01.6]} 6... Nf6 {[%clk 0:02:51]}
7. Nc3 {[%clk 0:03:02]} 7... Nd7 {[%clk 0:02:51.1]} 8. Be3 {[%clk 0:03:02.3]}
8... e5 {[%clk 0:02:50.8]} 9. Qd2 {[%clk 0:03:02.7]} 9... h6 {[%clk 0:02:47.8]}
10. O-O {[%clk 0:03:02.5]} 10... Qe7 {[%clk 0:02:47.8]} 11. Nh2 {[%clk
0:03:02.6]} 11... Nf8 {[%clk 0:02:47.3]} 12. f4 {[%clk 0:03:02.7]} 12... exf4
{[%clk 0:02:48]} 13. Bxf4 {[%clk 0:03:03.6]} 13... Ne6 {[%clk 0:02:47.9]} 14.
Bg3 {[%clk 0:03:04]} 14... Qg5 {[%clk 0:02:42.6]} 15. Qe1 {[%clk 0:03:03.6]}
15... Nd4 {[%clk 0:02:41.4]} 16. Qf2 {[%clk 0:03:03.4]} 16... O-O {[%clk
0:02:37.1]} 17. Bd6 {[%clk 0:03:02.2]} 17... Bxh3 {[%clk 0:02:35.5]} 18. Bf4
{[%clk 0:03:02.3]} 18... Qxg2+ {[%clk 0:02:31.7]} 19. Qxg2 {[%clk 0:03:03.2]}
19... Bxg2 {[%clk 0:02:32.3]} 20. Kxg2 {[%clk 0:03:04.1]} 20... Nxc2 {[%clk
0:02:28.9]} 21. Rad1 {[%clk 0:03:01.2]} 21... Rfd8 {[%clk 0:02:28.6]} 22. Ng4
{[%clk 0:02:48.6]} 22... g5 {[%clk 0:02:23.4]} 23. Bc1 {[%clk 0:02:44.7]} 23...
Rd6 {[%clk 0:02:12]} 24. e5 {[%clk 0:02:23.4]} 24... Re6 {[%clk 0:02:11.4]} 25.
Ne4 {[%clk 0:02:21.1]} 25... b6 {[%clk 0:02:00.9]} 26. Nef6+ {[%clk 0:02:20.7]}
26... Kf8 {[%clk 0:01:58.7]} 27. Rf5 {[%clk 0:02:13.8]} 27... Rd8 {[%clk
0:01:51.5]} 28. Nh5 {[%clk 0:02:01.8]} 28... Nd4 {[%clk 0:01:44.5]} 29. Nxg7
{[%clk 0:02:01.1]} 29... Kxg7 {[%clk 0:01:41.1]} 30. Rf2 {[%clk 0:02:00.2]}
30... Rg6 {[%clk 0:01:22.3]} 31. Rdf1 {[%clk 0:01:54.4]} 31... Rd7 {[%clk
0:01:22.2]} 32. Nf6 {[%clk 0:01:46.6]} 32... Re7 {[%clk 0:01:21.9]} 33. Nh5+
{[%clk 0:01:42.2]} 33... Kg8 {[%clk 0:01:07.4]} 34. Nf6+ {[%clk 0:01:34.4]}
34... Kg7 {[%clk 0:01:06.9]} 35. Ne4 {[%clk 0:01:35]} 35... g4 {[%clk
0:01:01.4]} 36. Nd6 {[%clk 0:01:30.9]} 36... Nf3 {[%clk 0:01:00.6]} 37. Nf5+
{[%clk 0:01:31]} 37... Kf8 {[%clk 0:00:58.7]} 38. Bxh6+ {[%clk 0:01:28.5]} 38...
Ke8 {[%clk 0:00:55]} 39. Nxe7 {[%clk 0:01:26.3]} 39... Kxe7 {[%clk 0:00:55.3]}
40. Bf4 {[%clk 0:01:24.3]} 40... Ke6 {[%clk 0:00:55.5]} 41. Rh1 {[%clk
0:01:20.7]} 41... Kf5 {[%clk 0:00:54.7]} 42. Kg3 {[%clk 0:01:20.1]} 42... Ke6
{[%clk 0:00:53.3]} 43. Rh6 {[%clk 0:01:19]} 43... Rxh6 {[%clk 0:00:50.6]} 44.
Bxh6 {[%clk 0:01:19.9]} 44... Nxe5 {[%clk 0:00:51.5]} 45. Bg7 {[%clk 0:01:13.6]}
45... Nxd3 {[%clk 0:00:48.4]} 46. Rf6+ {[%clk 0:01:13.7]} 46... Kd5 {[%clk
0:00:48.5]} 47. Rxf7 {[%clk 0:01:11.8]} 47... a5 {[%clk 0:00:47.2]} 48. Rd7+
{[%clk 0:01:06]} 48... Ke4 {[%clk 0:00:47.5]} 49. Rd6 {[%clk 0:01:03.2]} 49...
Nb4 {[%clk 0:00:47.1]} 50. a3 {[%clk 0:01:03.2]} 50... Nd5 {[%clk 0:00:42.3]}
51. Rxc6 {[%clk 0:01:03.1]} 51... Ne3 {[%clk 0:00:42.8]} 52. Bc3 {[%clk
0:00:56.9]} 52... Nd5 {[%clk 0:00:39.6]} 53. Rd6 {[%clk 0:00:50.6]} 53... a4
{[%clk 0:00:36.5]} 54. Kxg4 {[%clk 0:00:34.7]} 54... b5 {[%clk 0:00:36.8]} 55.
Ba5 {[%clk 0:00:35]} 55... Ne3+ {[%clk 0:00:30]} 56. Kg5 {[%clk 0:00:33.4]}
56... Nc4 {[%clk 0:00:29.7]} 57. Ra6 {[%clk 0:00:27.1]} 57... Kd3 {[%clk
0:00:27.4]} 58. Bc3 {[%clk 0:00:22.2]} 58... Nxa3 {[%clk 0:00:27.3]} 59. Rc6
{[%clk 0:00:19.2]} 59... c4 {[%clk 0:00:21.7]} 60. Rc5 {[%clk 0:00:12.1]} 60...
Nb1 {[%clk 0:00:15.7]} 61. Bb4 {[%clk 0:00:12.4]} 61... Kc2 {[%clk 0:00:12.9]}
62. Rxb5 {[%clk 0:00:12.7]} 62... Kxb2 {[%clk 0:00:13.4]} 63. Kf4 {[%clk
0:00:12.5]} 63... a3 {[%clk 0:00:12.9]} 64. Bd6+ {[%clk 0:00:11.7]} 64... Kc2
{[%clk 0:00:11.8]} 65. Ra5 {[%clk 0:00:06.4]} 65... Kb2 {[%clk 0:00:11.4]} 66.
Ke3 {[%clk 0:00:03.5]} 66... a2 {[%clk 0:00:11.6]} 67. Be5+ {[%clk 0:00:03.8]}
67... c3 {[%clk 0:00:12.1]} 68. Kd3 {[%clk 0:00:02.5]} 68... a1=Q {[%clk
0:00:11.3]} 69. Bxc3+ {[%clk 0:00:03]} 69... Nxc3 {[%clk 0:00:11.1]} 70. Rxa1
{[%clk 0:00:03.9]} 70... Kxa1 {[%clk 0:00:11.4]} 1/2-1/2